Workbook

Sheet Regular
A2: Measurement Date: 6/30/2015
A3: Membership Goup: Regular
H7: DEFERRED OUTFLOWS OF RESOURCES | M7: DEFERRED INFLOWS OF RESOURCES
H8: (Excluding Employer Specific Amounts) * | M8: (Excluding Employer Specific Amounts) *
A9: Employer ID # | B9: Employer Name | C9: 2020 Actual Employer Contributions | D9: Employer Allocation Percentage ** | E9: Net Pension Liability (NPL) | F9: Change in NPL due to 1% Decrease in the Actuarial Assumed Investment Return (6.00%) | G9: Change in NPL due to 1% Increase in the Actuarial Assumed Investment Return (8.00%) | H9: Differences Between Expected and Actual Experience | I9: Changes of Assumptions | J9: Difference Between Projected and Actual Investment Earnings on Pension Plan Investments | K9: Total Deferred Outflows of Resources | M9: Differences Between Expected and Actual Experience | N9: Difference Between Projected and Actual Investment Earnings on Pension Plan Investments | O9: Total Deferred Inflows of Resources | P9: Total Deferred Inflows of Resources | Q9: Total Proportionate Share of Allocable Plan Pension Expense
C10: =+C2048 -> 743953230.1 | D10: 1 | E10: 6975749814 | F10: 11631474111 | G10: 3071996126 | H10: 7706226 | I10: 358062956 | J10: 965703418 | K10: =SUM(H10:J10) -> 1331472600 | M10: 165343059 | N10: 573555423 | P10: =SUM(M10:O10) -> 738898482 | Q10: 1070240637
A11: 00109 | B11: REGIONAL ENVIRONMENTAL IMPROVEMENT COMM (REIC) | C11: 19580.23 | D11: =+C11/$C$10 -> 2.631916794e-05 | E11: =ROUND(D11*$E$10,0) -> 183596 | F11: =+ROUND(D11*$F$10,0) -> 306131 | G11: =+ROUND(D11*$G$10,0) -> 80852 | H11: =ROUND(D11*$H$10,0) -> 203 | I11: =ROUND(D11*$I$10,0) -> 9424 | J11: =ROUND(D11*$J$10,0) -> 25417 | K11: =ROUND(SUM(H11:J11),0) -> 35044 | M11: =ROUND(D11*$M$10,0) -> 4352 | N11: =ROUND(D11*$N$10,0) -> 15096 | O11: =ROUND(SUM(L11:N11),0) -> 19448 | P11: =ROUND(SUM(M11:N11),0) -> 19448 | Q11: =ROUND(D11*$Q$10,0) -> 28168
A12: 00111 | B12: PAGE COUNTY SOIL & WATER CONSERVATION | C12: 4365.05 | D12: =+C12/$C$10 -> 5.867371527e-06 | E12: =ROUND(D12*$E$10,0) -> 40929 | F12: =+ROUND(D12*$F$10,0) -> 68246 | G12: =+ROUND(D12*$G$10,0) -> 18025 | H12: =ROUND(D12*$H$10,0) -> 45 | I12: =ROUND(D12*$I$10,0) -> 2101 | J12: =ROUND(D12*$J$10,0) -> 5666 | K12: =ROUND(SUM(H12:J12),0) -> 7812 | M12: =ROUND(D12*$M$10,0) -> 970 | N12: =ROUND(D12*$N$10,0) -> 3365 | O12: =ROUND(SUM(L12:N12),0) -> 4335 | P12: =ROUND(SUM(M12:N12),0) -> 4335 | Q12: =ROUND(D12*$Q$10,0) -> 6279
A13: 00113 | B13: SIOUX CO. SOIL & WATER CONSER. DISTRICT | C13: 3139.74 | D13: 4.220345948e-06 | E13: 29440 | F13: 49089 | G13: 12965 | H13: 33 | I13: 1511 | J13: 4076 | K13: 5620 | M13: 698 | N13: 2421 | O13: 3119 | P13: 3119 | Q13: 4517
A14: 00115 | B14: MID IOWA COMMUNITY ACTION INC (MICA) | C14: 323665.54 | D14: 0.0004350616771 | E14: 3034881 | F14: 5060409 | G14: 1336508 | H14: 3353 | I14: 155779 | J14: 420141 | K14: 579273 | M14: 71934 | N14: 249532 | O14: 321466 | P14: 321466 | Q14: 465621
A15: 00116 | B15: ADAIR CO SOIL & WATER CONSERVATION DIST | C15: 833.01 | D15: 1.119707485e-06 | E15: 7811 | F15: 13024 | G15: 3440 | H15: 9 | I15: 401 | J15: 1081 | K15: 1491 | M15: 185 | N15: 642 | O15: 827 | P15: 827 | Q15: 1198
A16: 00119 | B16: MARION CO. SOIL & WATER CONSERVATION DIST | C16: 297.84 | D16: 4.003477476e-07 | E16: 2793 | F16: 4657 | G16: 1230 | H16: 3 | I16: 143 | J16: 387 | K16: 533 | M16: 66 | N16: 230 | O16: 296 | P16: 296 | Q16: 428
A17: 00121 | B17: HARRISON COUNTY LANDFILL COMMISSION | C17: 24401.57 | D17: 3.279987103e-05 | E17: 228804 | F17: 381511 | G17: 100761 | H17: 253 | I17: 11744 | J17: 31675 | K17: 43672 | M17: 5423 | N17: 18813 | O17: 24236 | P17: 24236 | Q17: 35104
A18: 00123 | B18: SCOTT COUNTY SOIL & WATER CONS. DIST. | C18: 3400.65 | D18: 4.571053478e-06 | E18: 31887 | F18: 53168 | G18: 14042 | H18: 35 | I18: 1637 | J18: 4414 | K18: 6086 | M18: 756 | N18: 2622 | O18: 3378 | P18: 3378 | Q18: 4892
A19: 00124 | B19: HAMPTON - DUMONT COMMUNITY SCHOOL DIST | C19: 969701.63 | D19: 0.001303444344 | E19: 9092502 | F19: 15160979 | G19: 4004176 | H19: 10045 | I19: 466715 | J19: 1258741 | K19: 1735501 | M19: 215515 | N19: 747598 | O19: 963113 | P19: 963113 | Q19: 1394999
A20: 00128 | B20: BUCHANAN CO ECONOMIC DEVELOPMENT COMM | C20: 7104.48 | D20: 9.549632575e-06 | E20: 66616 | F20: 111076 | G20: 29336 | H20: 74 | I20: 3419 | J20: 9222 | K20: 12715 | M20: 1579 | N20: 5477 | O20: 7056 | P20: 7056 | Q20: 10220
A21: 00131 | B21: PARKERSBURG ECONOMIC DEVELOPMENT | C21: 2043.75 | D21: 2.7471485e-06 | E21: 19163 | F21: 31953 | G21: 8439 | H21: 21 | I21: 984 | J21: 2653 | K21: 3658 | M21: 454 | N21: 1576 | O21: 2030 | P21: 2030 | Q21: 2940
A22: 00132 | B22: FREMONT COUNTY SOIL & WATER CONS DIST | C22: 2155.7 | D22: 2.89762839e-06 | E22: 20213 | F22: 33704 | G22: 8902 | H22: 22 | I22: 1038 | J22: 2798 | K22: 3858 | M22: 479 | N22: 1662 | O22: 2141 | P22: 2141 | Q22: 3101
A23: 00133 | B23: COMMUNITY HOUSING INITIATIVES INC. | C23: 153291.9 | D23: 0.0002060504529 | E23: 1437356 | F23: 2396671 | G23: 632986 | H23: 1588 | I23: 73779 | J23: 198984 | K23: 274351 | M23: 34069 | N23: 118181 | O23: 152250 | P23: 152250 | Q23: 220524
A24: 00137 | B24: CITY OF WESTWOOD | C24: 396.48 | D24: 5.329367277e-07 | E24: 3718 | F24: 6199 | G24: 1637 | H24: 4 | I24: 191 | J24: 515 | K24: 710 | M24: 88 | N24: 306 | O24: 394 | P24: 394 | Q24: 570
A25: 00140 | B25: SOUTHEAST IOWA REGIONAL AIRPORT AUTH | C25: 14639.33 | D25: 1.967775582e-05 | E25: 137267 | F25: 228881 | G25: 60450 | H25: 152 | I25: 7046 | J25: 19003 | K25: 26201 | M25: 3254 | N25: 11286 | O25: 14540 | P25: 14540 | Q25: 21060
A26: 00141 | B26: AUDUBON COUNTY SOLID WASTE MANAGEMENT | C26: 11014.81 | D26: 1.480578288e-05 | E26: 103281 | F26: 172213 | G26: 45483 | H26: 114 | I26: 5301 | J26: 14298 | K26: 19713 | M26: 2448 | N26: 8492 | O26: 10940 | P26: 10940 | Q26: 15846
A27: 00142 | B27: HARDIN COUNTY SOLID WASTE DISPOSAL COMM | C27: 30571.78 | D27: 4.109368541e-05 | E27: 286659 | F27: 477980 | G27: 126240 | H27: 317 | I27: 14714 | J27: 39684 | K27: 54715 | M27: 6795 | N27: 23570 | O27: 30365 | P27: 30365 | Q27: 43980
A28: 00145 | B28: NEW OPPORTUNITIES, INC. | C28: 284344.92 | D28: 0.0003822080589 | E28: 2666188 | F28: 4445643 | G28: 1174142 | H28: 2945 | I28: 136855 | J28: 369100 | K28: 508900 | M28: 63195 | N28: 219218 | O28: 282413 | P28: 282413 | Q28: 409055
A29: 00147 | B29: WHAT CHEER PUBLIC LIBRARY | C29: 640.62 | D29: 8.611025184e-07 | E29: 6007 | F29: 10016 | G29: 2645 | H29: 7 | I29: 308 | J29: 832 | K29: 1147 | M29: 142 | N29: 494 | O29: 636 | P29: 636 | Q29: 922
A30: 00148 | B30: AMANA COLONIES LAND USE DISTRICT | C30: 1661.4 | D30: 2.233204902e-06 | E30: 15578 | F30: 25975 | G30: 6860 | H30: 17 | I30: 800 | J30: 2157 | K30: 2974 | M30: 369 | N30: 1281 | O30: 1650 | P30: 1650 | Q30: 2390
A31: 00149 | B31: STATE - DEPT OF CORRECTIONS/FT DODGE | C31: 175940.8 | D31: 0.0002364944366 | E31: 1649726 | F31: 2750779 | G31: 726510 | H31: 1822 | I31: 84680 | J31: 228383 | K31: 314885 | M31: 39103 | N31: 135643 | O31: 174746 | P31: 174746 | Q31: 253106
A32: 00155 | B32: HAMILTON COUNTY SEED | C32: 633.67 | D32: 8.517605333e-07 | E32: 5942 | F32: 9907 | G32: 2617 | H32: 7 | I32: 305 | J32: 823 | K32: 1135 | M32: 141 | N32: 489 | O32: 630 | P32: 630 | Q32: 912
A33: 00173 | B33: CITY OF SAINT DONATUS | C33: 1496.98 | D33: 2.012196385e-06 | E33: 14037 | F33: 23405 | G33: 6181 | H33: 16 | I33: 720 | J33: 1943 | K33: 2679 | M33: 333 | N33: 1154 | O33: 1487 | P33: 1487 | Q33: 2154
A34: 00174 | B34: CALHOUN COUNTY ECONOMIC DEVELOPMENT CORP | C34: 4332.6 | D34: 5.823753194e-06 | E34: 40625 | F34: 67739 | G34: 17891 | H34: 45 | I34: 2085 | J34: 5624 | K34: 7754 | M34: 963 | N34: 3340 | O34: 4303 | P34: 4303 | Q34: 6233
A35: 00177 | B35: WGML REFUSE COMMISSION | C35: 113.28 | D35: 1.522676365e-07 | E35: 1062 | F35: 1771 | G35: 468 | H35: 1 | I35: 55 | J35: 147 | K35: 203 | M35: 25 | N35: 87 | O35: 112 | P35: 112 | Q35: 163
A36: 00182 | B36: IOWA COUNTY ENGINEERS ASSOCIATION | C36: 65127.5 | D36: 8.754246553e-05 | E36: 610674 | F36: 1018248 | G36: 268930 | H36: 675 | I36: 31346 | J36: 84540 | K36: 116561 | M36: 14475 | N36: 50210 | O36: 64685 | P36: 64685 | Q36: 93692
A37: 00189 | B37: GREENBELT HOME CARE | C37: 89362.77 | D37: 0.000120118801 | E37: 837919 | F37: 1397159 | G37: 369004 | H37: 926 | I37: 43010 | J37: 115999 | K37: 159935 | M37: 19861 | N37: 68895 | O37: 88756 | P37: 88756 | Q37: 128556
A38: 00195 | B38: IMPACT COMMUNITY ACTION PARTNERSHIP, INC | C38: 131146.22 | D38: 0.0001762828827 | E38: 1229705 | F38: 2050430 | G38: 541540 | H38: 1358 | I38: 63120 | J38: 170237 | K38: 234715 | M38: 29147 | N38: 101108 | O38: 130255 | P38: 130255 | Q38: 188665
A39: 00196 | B39: SOUTHERN IOWA ECONOMIC DEV. ASSOC. | C39: 382174.48 | D39: 0.0005137076694 | E39: 3583496 | F39: 5975177 | G39: 1578108 | H39: 3959 | I39: 183940 | J39: 496089 | K39: 683988 | M39: 84938 | N39: 294640 | O39: 379578 | P39: 379578 | Q39: 549791
A40: 00197 | B40: SOUTH CENTRAL IOWA COMMUNITY ACTION | C40: 159197.77 | D40: 0.0002139889493 | E40: 1492733 | F40: 2489007 | G40: 657373 | H40: 1649 | I40: 76622 | J40: 206650 | K40: 284921 | M40: 35382 | N40: 122735 | O40: 158117 | P40: 158117 | Q40: 229020
A41: 00198 | B41: OPERATION THRESHOLD INC. | C41: 196942.41 | D41: 0.0002647241816 | E41: 1846650 | F41: 3079132 | G41: 813232 | H41: 2040 | I41: 94788 | J41: 255645 | K41: 352473 | M41: 43770 | N41: 151834 | O41: 195604 | P41: 195604 | Q41: 283319
A42: 00199 | B42: WEST CENTRAL COMMUNITY ACTION | C42: 377900.57 | D42: 0.0005079628056 | E42: 3543421 | F42: 5908356 | G42: 1560460 | H42: 3914 | I42: 181883 | J42: 490541 | K42: 676338 | M42: 83988 | N42: 291345 | O42: 375333 | P42: 375333 | Q42: 543642
A43: 00200 | B43: NORTH IOWA COMMUNITY ACTION ORGANIZATION | C43: 342473.27 | D43: 0.0004603424734 | E43: 3211234 | F43: 5354462 | G43: 1414170 | H43: 3548 | I43: 164832 | J43: 444554 | K43: 612934 | M43: 76114 | N43: 264032 | O43: 340146 | P43: 340146 | Q43: 492677
A44: 00201 | B44: MID-SIOUX OPPORTUNITY INC. | C44: 262002.2 | D44: 0.0003521756334 | E44: 2456689 | F44: 4096322 | G44: 1081882 | H44: 2714 | I44: 126101 | J44: 340097 | K44: 468912 | M44: 58230 | N44: 201992 | O44: 260222 | P44: 260222 | Q44: 376913
A45: 00202 | B45: COMMUNITY ACTION OF SOUTHEAST IOWA | C45: 274481.28 | D45: 0.0003689496448 | E45: 2573700 | F45: 4291428 | G45: 1133412 | H45: 2843 | I45: 132107 | J45: 356296 | K45: 491246 | M45: 61003 | N45: 211613 | O45: 272616 | P45: 272616 | Q45: 394865
A46: 00203 | B46: MATURA ACTION CORPORATION | C46: 163486.05 | D46: 0.0002197531288 | E46: 1532943 | F46: 2556053 | G46: 675081 | H46: 1693 | I46: 78685 | J46: 212216 | K46: 292594 | M46: 36335 | N46: 126041 | O46: 162376 | P46: 162376 | Q46: 235189
A47: 00204 | B47: COMMUNITY ACTION AGENCY OF SIOUXLAND | C47: 398435.14 | D47: 0.0005355647692 | E47: 3735966 | F47: 6229408 | G47: 1645253 | H47: 4127 | I47: 191766 | J47: 517197 | K47: 713090 | M47: 88552 | N47: 307176 | O47: 395728 | P47: 395728 | Q47: 573183
A48: 00205 | B48: COMMUNITY ACTION OF EASTERN IOWA | C48: 302980.37 | D48: 0.0004072572814 | E48: 2840925 | F48: 4737003 | G48: 1251093 | H48: 3138 | I48: 145824 | J48: 393290 | K48: 542252 | M48: 67337 | N48: 233585 | O48: 300922 | P48: 300922 | Q48: 435863
A49: 00206 | B49: OPERATION NEW VIEW COMM. ACTION AGENCY | C49: 37236.74 | D49: 5.005252816e-05 | E49: 349154 | F49: 582185 | G49: 153761 | H49: 386 | I49: 17922 | J49: 48336 | K49: 66644 | M49: 8276 | N49: 28708 | O49: 36984 | P49: 36984 | Q49: 53568
A50: 00208 | B50: HAWKEYE AREA COMMUNITY ACTION PROG. INC. | C50: 617187.95 | D50: 0.0008296058476 | E50: 5787123 | F50: 9649539 | G50: 2548546 | H50: 6393 | I50: 297051 | J50: 801153 | K50: 1104597 | M50: 137170 | N50: 475825 | O50: 612995 | P50: 612995 | Q50: 887878
A51: 00210 | B51: CITY OF BALLTOWN | C51: 197.66 | D51: 2.656887449e-07 | E51: 1853 | F51: 3090 | G51: 816 | H51: 2 | I51: 95 | J51: 257 | K51: 354 | M51: 44 | N51: 152 | O51: 196 | P51: 196 | Q51: 284
A52: 00213 | B52: CITY OF KINROSS | C52: 56.64 | D52: 7.613381824e-08 | E52: 531 | F52: 886 | G52: 234 | H52: 1 | I52: 27 | J52: 74 | K52: 102 | M52: 13 | N52: 44 | O52: 57 | P52: 57 | Q52: 81
A53: 00215 | B53: REGIONAL TRANSIT AUTHORITY INC | C53: 131340.69 | D53: 0.0001765442835 | E53: 1231529 | F53: 2053470 | G53: 542343 | H53: 1360 | I53: 63214 | J53: 170489 | K53: 235063 | M53: 29190 | N53: 101258 | O53: 130448 | P53: 130448 | Q53: 188945
A54: 00216 | B54: STATE - DEPT OF HUMAN SERVICES/CCUSO | C54: 250465.39 | D54: 0.0003366681935 | E54: 2348513 | F54: 3915947 | G54: 1034243 | H54: 2594 | I54: 120548 | J54: 325122 | K54: 448264 | M54: 55666 | N54: 193098 | O54: 248764 | P54: 248764 | Q54: 360316
A55: 00218 | B55: FREEPORT WATER AND SANITARY DISTRICT | C55: 2048.91 | D55: 2.75408442e-06 | E55: 19212 | F55: 32034 | G55: 8461 | H55: 21 | I55: 986 | J55: 2660 | K55: 3667 | M55: 455 | N55: 1580 | O55: 2035 | P55: 2035 | Q55: 2948
A56: 00223 | B56: MONROE COUNTY SOIL AND WATER CONS. DIST. | C56: 4796.86 | D56: 6.4477978e-06 | E56: 44978 | F56: 74997 | G56: 19808 | H56: 50 | I56: 2309 | J56: 6227 | K56: 8586 | M56: 1066 | N56: 3698 | O56: 4764 | P56: 4764 | Q56: 6901
A57: 00226 | B57: APPANOOSE COUNTY SOIL AND WATER DISTRICT | C57: 451.71 | D57: 6.071752655e-07 | E57: 4236 | F57: 7062 | G57: 1865 | H57: 5 | I57: 217 | J57: 586 | K57: 808 | M57: 100 | N57: 348 | O57: 448 | P57: 448 | Q57: 650
A58: 00227 | B58: CEDAR COUNTY SOIL & WATER CONS DISTRICT | C58: 332.22 | D58: 4.465603301e-07 | E58: 3115 | F58: 5194 | G58: 1372 | H58: 3 | I58: 160 | J58: 431 | K58: 594 | M58: 74 | N58: 256 | O58: 330 | P58: 330 | Q58: 478
A59: 00234 | B59: THE COMMUNITY AGENCY | C59: 45093.4 | D59: 6.061321892e-05 | E59: 422823 | F59: 705021 | G59: 186204 | H59: 467 | I59: 21703 | J59: 58534 | K59: 80704 | M59: 10022 | N59: 34765 | O59: 44787 | P59: 44787 | Q59: 64871
A60: 00240 | B60: MONTGOMERY SOIL & WATER CONS. DISTRICT | C60: 259.5 | D60: 3.488122499e-07 | E60: 2433 | F60: 4057 | G60: 1072 | H60: 3 | I60: 125 | J60: 337 | K60: 465 | M60: 58 | N60: 200 | O60: 258 | P60: 258 | Q60: 373
A61: 00241 | B61: INDEPENDENCE LIGHT & POWER TELECOMM | C61: 50924.78 | D61: 6.8451588e-05 | E61: 477501 | F61: 796193 | G61: 210283 | H61: 528 | I61: 24510 | J61: 66104 | K61: 91142 | M61: 11318 | N61: 39261 | O61: 50579 | P61: 50579 | Q61: 73260
A62: 00242 | B62: NODAWAY VALLEY COMMUNITY SCHOOL DISTRICT | C62: 416683.15 | D62: 0.0005600932063 | E62: 3907070 | F62: 6514710 | G62: 1720604 | H62: 4316 | I62: 200549 | J62: 540884 | K62: 745749 | M62: 92608 | N62: 321244 | O62: 413852 | P62: 413852 | Q62: 599435
A63: 00245 | B63: CHARLES CITY AREA DEVELOPMENT CORP | C63: 12778.7 | D63: 1.717675182e-05 | E63: 119821 | F63: 199791 | G63: 52767 | H63: 132 | I63: 6150 | J63: 16588 | K63: 22870 | M63: 2840 | N63: 9852 | O63: 12692 | P63: 12692 | Q63: 18383
A64: 00250 | B64: KOSSUTH COUNTY ECONOMIC DEVELOPMENT CORP | C64: 21693.84 | D64: 2.916022019e-05 | E64: 203414 | F64: 339176 | G64: 89580 | H64: 225 | I64: 10441 | J64: 28160 | K64: 38826 | M64: 4821 | N64: 16725 | O64: 21546 | P64: 21546 | Q64: 31208
A65: 00256 | B65: LOUISA SOIL & WATER CONSERVATION DIST | C65: 383.12 | D65: 5.149786095e-07 | E65: 3592 | F65: 5990 | G65: 1582 | H65: 4 | I65: 184 | J65: 497 | K65: 685 | M65: 85 | N65: 295 | O65: 380 | P65: 380 | Q65: 551
A66: 00270 | B66: LUCAS COUNTY SOIL & WATER CONS DISTRICT | C66: 5945.52 | D66: 7.991792709e-06 | E66: 55749 | F66: 92956 | G66: 24551 | H66: 62 | I66: 2862 | J66: 7718 | K66: 10642 | M66: 1321 | N66: 4584 | O66: 5905 | P66: 5905 | Q66: 8553
A67: 00278 | B67: AGWSR COMMUNITY SCHOOL DISTRICT | C67: 482040.15 | D67: 0.000647944159 | E67: 4519896 | F67: 7536546 | G67: 1990482 | H67: 4993 | I67: 232005 | J67: 625722 | K67: 862720 | M67: 107133 | N67: 371632 | O67: 478765 | P67: 478765 | Q67: 693456
A68: 00279 | B68: WEST CENTRAL VALLEY COMMUNITY SCHOOL | C68: 571403.5 | D68: 0.0007680637396 | E68: 5357820 | F68: 8933714 | G68: 2359489 | H68: 5919 | I68: 275015 | J68: 741722 | K68: 1022656 | M68: 126994 | N68: 440527 | O68: 567521 | P68: 567521 | Q68: 822013
A69: 00283 | B69: HENRY COUNTY SOIL & WATER CONS DIST | C69: 4040.3 | D69: 5.430852151e-06 | E69: 37884 | F69: 63169 | G69: 16684 | H69: 42 | I69: 1945 | J69: 5245 | K69: 7232 | M69: 898 | N69: 3115 | O69: 4013 | P69: 4013 | Q69: 5812
A70: 00287 | B70: MADISON COUNTY SOIL & WATER | C70: 8610.12 | D70: 1.157346948e-05 | E70: 80734 | F70: 134617 | G70: 35554 | H70: 89 | I70: 4144 | J70: 11177 | K70: 15410 | M70: 1914 | N70: 6638 | O70: 8552 | P70: 8552 | Q70: 12386
A71: 00288 | B71: CLARKE COUNTY SOIL & WATER | C71: 3221.91 | D71: 4.330796439e-06 | E71: 30211 | F71: 50374 | G71: 13304 | H71: 33 | I71: 1551 | J71: 4182 | K71: 5766 | M71: 716 | N71: 2484 | O71: 3200 | P71: 3200 | Q71: 4635
A72: 00290 | B72: OSAGE MUNICIPAL COMMUNICATIONS UTILITY | C72: 27128.97 | D72: 3.646596171e-05 | E72: 254377 | F72: 424153 | G72: 112023 | H72: 281 | I72: 13057 | J72: 35215 | K72: 48553 | M72: 6029 | N72: 20915 | O72: 26944 | P72: 26944 | Q72: 39027
A73: 00291 | B73: BALDWIN-MONMOUTH WASTEWATER TREATMENT AG | C73: 543.68 | D73: 7.307986282e-07 | E73: 5098 | F73: 8500 | G73: 2245 | H73: 6 | I73: 262 | J73: 706 | K73: 974 | M73: 121 | N73: 419 | O73: 540 | P73: 540 | Q73: 782
A74: 00293 | B74: COUNCIL BLUFFS AIRPORT AUTHORITY | C74: 20141.29 | D74: 2.707332825e-05 | E74: 188857 | F74: 314903 | G74: 83169 | H74: 209 | I74: 9694 | J74: 26145 | K74: 36048 | M74: 4476 | N74: 15528 | O74: 20004 | P74: 20004 | Q74: 28975
A75: 00294 | B75: COMMUNITY & FAMILY RESOURCES | C75: 347160.62 | D75: 0.000466643071 | E75: 3255185 | F75: 5427747 | G75: 1433526 | H75: 3596 | I75: 167088 | J75: 450639 | K75: 621323 | M75: 77156 | N75: 267646 | O75: 344802 | P75: 344802 | Q75: 499420
A76: 00296 | B76: E POTTAWATTAMIE SOIL & WATER CONS DIST | C76: 3315.33 | D76: =+C76/$C$10 -> 4.456368849e-06 | E76: =ROUND(D76*$E$10,0) -> 31087 | F76: =+ROUND(D76*$F$10,0) -> 51834 | G76: =+ROUND(D76*$G$10,0) -> 13690 | H76: =ROUND(D76*$H$10,0) -> 34 | I76: =ROUND(D76*$I$10,0) -> 1596 | J76: =ROUND(D76*$J$10,0) -> 4304 | K76: =ROUND(SUM(H76:J76),0) -> 5934 | M76: =ROUND(D76*$M$10,0) -> 737 | N76: =ROUND(D76*$N$10,0) -> 2556 | O76: =ROUND(SUM(L76:N76),0) -> 3293 | P76: =ROUND(SUM(M76:N76),0) -> 3293 | Q76: =ROUND(D76*$Q$10,0) -> 4769
A77: 00300 | B77: CITY OF MAHARISHI VEDIC CITY | C77: 7577.37 | D77: 1.018527737e-05 | E77: 71050 | F77: 118470 | G77: 31289 | H77: 78 | I77: 3647 | J77: 9836 | K77: 13561 | M77: 1684 | N77: 5842 | O77: 7526 | P77: 7526 | Q77: 10901
A78: 00301 | B78: CITY OF SAGEVILLE | C78: 1510.44 | D78: 2.03028892e-06 | E78: 14163 | F78: 23615 | G78: 6237 | H78: 16 | I78: 727 | J78: 1961 | K78: 2704 | M78: 336 | N78: 1164 | O78: 1500 | P78: 1500 | Q78: 2173
A79: 00303 | B79: CITY OF UDELL | C79: 113.28 | D79: 1.522676365e-07 | E79: 1062 | F79: 1771 | G79: 468 | H79: 1 | I79: 55 | J79: 147 | K79: 203 | M79: 25 | N79: 87 | O79: 112 | P79: 112 | Q79: 163
A80: 00304 | B80: CITY OF TURIN | C80: 127.48 | D80: 1.713548579e-07 | E80: 1195 | F80: 1993 | G80: 526 | H80: 1 | I80: 61 | J80: 165 | K80: 227 | M80: 28 | N80: 98 | O80: 126 | P80: 126 | Q80: 183
A81: 00306 | B81: CITY OF GIBSON | C81: 169.92 | D81: 2.284014547e-07 | E81: 1593 | F81: 2657 | G81: 702 | H81: 2 | I81: 82 | J81: 221 | K81: 305 | M81: 38 | N81: 131 | O81: 169 | P81: 169 | Q81: 244
A82: 00307 | B82: CITY OF OAKLAND ACRES | C82: 416.73 | D82: 5.601561807e-07 | E82: 3908 | F82: 6515 | G82: 1721 | H82: 4 | I82: 201 | J82: 541 | K82: 746 | M82: 93 | N82: 321 | O82: 414 | P82: 414 | Q82: 600
A83: 00308 | B83: CITY OF GILLETT GROVE | C83: 283.2 | D83: 3.806690912e-07 | E83: 2655 | F83: 4428 | G83: 1169 | H83: 3 | I83: 136 | J83: 368 | K83: 507 | M83: 63 | N83: 218 | O83: 281 | P83: 281 | Q83: 407
A84: 00309 | B84: IOWA NORTHLAND REGIONAL HOUSING | C84: 6144.49 | D84: 8.259242317e-06 | E84: 57614 | F84: 96067 | G84: 25372 | H84: 64 | I84: 2957 | J84: 7976 | K84: 10997 | M84: 1366 | N84: 4737 | O84: 6103 | P84: 6103 | Q84: 8839
A85: 00314 | B85: LYTTON LIBRARY | C85: 1171.05 | D85: 1.574090887e-06 | E85: 10980 | F85: 18309 | G85: 4836 | H85: 12 | I85: 564 | J85: 1520 | K85: 2096 | M85: 260 | N85: 903 | O85: 1163 | P85: 1163 | Q85: 1685
A86: 00316 | B86: CROSSROADS MENTAL HEALTH CENTER | C86: 118272.44 | D86: 0.0001589783272 | E86: 1108993 | F86: 1849152 | G86: 488381 | H86: 1225 | I86: 56924 | J86: 153526 | K86: 211675 | M86: 26286 | N86: 91183 | O86: 117469 | P86: 117469 | Q86: 170145
A87: 00317 | B87: KIDS WORLD INC | C87: 19981.61 | D87: 2.68586911e-05 | E87: 187360 | F87: 312406 | G87: 82510 | H87: 207 | I87: 9617 | J87: 25938 | K87: 35762 | M87: 4441 | N87: 15405 | O87: 19846 | P87: 19846 | Q87: 28745
A88: 00319 | B88: STATE - DEPARTMENT OF REVENUE | C88: 1735193.74 | D88: 0.002332396271 | E88: 16270213 | F88: 27129207 | G88: 7165112 | H88: 17974 | I88: 835145 | J88: 2252403 | K88: 3105522 | M88: 385646 | N88: 1337759 | O88: 1723405 | P88: 1723405 | Q88: 2496225
A89: 00320 | B89: ZION RECOVERY SERVICES INC | C89: 235891.85 | D89: 0.0003170788706 | E89: 2211863 | F89: 3688095 | G89: 974065 | H89: 2443 | I89: 113534 | J89: 306204 | K89: 422181 | M89: 52427 | N89: 181862 | O89: 234289 | P89: 234289 | Q89: 339351
A90: 00321 | B90: GEORGE-LITTLE ROCK COMMUNITY SCHOOL | C90: 285585.48 | D90: 0.0003838755831 | E90: 2677820 | F90: 4465039 | G90: 1179264 | H90: 2958 | I90: 137452 | J90: 370710 | K90: 511120 | M90: 63471 | N90: 220174 | O90: 283645 | P90: 283645 | Q90: 410839
A91: 00322 | B91: BOARD OF PROFESSIONAL ETHICS AND CONDUCT | C91: 81957.14 | D91: 0.0001101643715 | E91: 768479 | F91: 1281374 | G91: 338425 | H91: 849 | I91: 39446 | J91: 106386 | K91: 146681 | M91: 18215 | N91: 63185 | O91: 81400 | P91: 81400 | Q91: 117902
A92: 00324 | B92: MONONA COUNTY SANITARY LANDFILL | C92: 14814.88 | D92: 1.991372495e-05 | E92: 138913 | F92: 231626 | G92: 61175 | H92: 153 | I92: 7130 | J92: 19231 | K92: 26514 | M92: 3293 | N92: 11422 | O92: 14715 | P92: 14715 | Q92: 21312
A93: 00325 | B93: APLINGTON-PARKERSBURG COMM SCHOOL DIST | C93: 575329.99 | D93: 0.0007733416117 | E93: 5394638 | F93: 8995103 | G93: 2375702 | H93: 5960 | I93: 276905 | J93: 746819 | K93: 1029684 | M93: 127867 | N93: 443554 | O93: 571421 | P93: 571421 | Q93: 827662
A94: 00326 | B94: MUSCATINE CO JOINT COMMUNICATIONS COMM | C94: 59516.92 | D94: 8.000088929e-05 | E94: 558066 | F94: 930528 | G94: 245762 | H94: 617 | I94: 28645 | J94: 77257 | K94: 106519 | M94: 13228 | N94: 45885 | O94: 59113 | P94: 59113 | Q94: 85620
A95: 00327 | B95: HAMILTON SOIL AND WATER CONS DIST | C95: 269.04 | D95: 3.616356366e-07 | E95: 2523 | F95: 4206 | G95: 1111 | H95: 3 | I95: 129 | J95: 349 | K95: 481 | M95: 60 | N95: 207 | O95: 267 | P95: 267 | Q95: 387
A96: 00329 | B96: MARION CO FAIR ASSOC | C96: 27230.24 | D96: 3.660208586e-05 | E96: 255327 | F96: 425736 | G96: 112441 | H96: 282 | I96: 13106 | J96: 35347 | K96: 48735 | M96: 6052 | N96: 20993 | O96: 27045 | P96: 27045 | Q96: 39173
A97: 00330 | B97: SOUTHEAST WEBSTER-GRAND COMMUNITY SCHOOL | C97: 338842.29 | D97: 0.0004554618171 | E97: 3177188 | F97: 5297692 | G97: 1399177 | H97: 3510 | I97: 163084 | J97: 439841 | K97: 606435 | M97: 75307 | N97: 261233 | O97: 336540 | P97: 336540 | Q97: 487454
A98: 00331 | B98: BATTLE CREEK COMMUNITY AMBULANCE | C98: 962.88 | D98: 1.29427491e-06 | E98: 9029 | F98: 15054 | G98: 3976 | H98: 10 | I98: 463 | J98: 1250 | K98: 1723 | M98: 214 | N98: 742 | O98: 956 | P98: 956 | Q98: 1385
A99: 00332 | B99: CLARINDA ECONOMIC DEVELOPMENT CORP | C99: 6467.62 | D99: 8.693584137e-06 | E99: 60644 | F99: 101119 | G99: 26707 | H99: 67 | I99: 3113 | J99: 8395 | K99: 11575 | M99: 1437 | N99: 4986 | O99: 6423 | P99: 6423 | Q99: 9304
A100: 00334 | B100: ROCK RAPIDS MUNICIPAL UTILITY | C100: 61501.96 | D100: 8.266912154e-05 | E100: 576679 | F100: 961564 | G100: 253959 | H100: 637 | I100: 29601 | J100: 79834 | K100: 110072 | M100: 13669 | N100: 47415 | O100: 61084 | P100: 61084 | Q100: 88476
A101: 00335 | B101: CRAWFORD COUNTY SWCD | C101: 128.24 | D101: 1.723764275e-07 | E101: 1202 | F101: 2005 | G101: 530 | H101: 1 | I101: 62 | J101: 166 | K101: 229 | M101: 29 | N101: 99 | O101: 128 | P101: 128 | Q101: 184
A102: 00336 | B102: ADLM CO ENVIRONMENTAL PUBLIC HEALTH | C102: 16691.88 | D102: 2.243673302e-05 | E102: 156513 | F102: 260972 | G102: 68926 | H102: 173 | I102: 8034 | J102: 21667 | K102: 29874 | M102: 3710 | N102: 12869 | O102: 16579 | P102: 16579 | Q102: 24013
A103: 00338 | B103: CLAYTON RIDGE COMM SCH DIST | C103: 405768.56 | D103: 0.0005454221362 | E103: 3804728 | F103: 6344063 | G103: 1675535 | H103: 4203 | I103: 195295 | J103: 526716 | K103: 726214 | M103: 90182 | N103: 312830 | O103: 403012 | P103: 403012 | Q103: 583733
A104: 00339 | B104: SIOUXLAND HUMAN INVEST PARTNERSHIP(SHIP) | C104: 250046.97 | D104: 0.0003361057656 | E104: 2344590 | F104: 3909406 | G104: 1032516 | H104: 2590 | I104: 120347 | J104: 324578 | K104: 447515 | M104: 55573 | N104: 192775 | O104: 248348 | P104: 248348 | Q104: 359714
A105: 00340 | B105: UNITED COMMUNITY HEALTH CENTER, INC | C105: 188133.95 | D105: 0.0002528841094 | E105: 1764056 | F105: 2941415 | G105: 776859 | H105: 1949 | I105: 90548 | J105: 244211 | K105: 336708 | M105: 41813 | N105: 145043 | O105: 186856 | P105: 186856 | Q105: 270647
A106: 00341 | B106: MITCHELL CO ECON DEV COMMISSION | C106: 7818.21 | D106: 1.05090074e-05 | E106: 73308 | F106: 122235 | G106: 32284 | H106: 81 | I106: 3763 | J106: 10149 | K106: 13993 | M106: 1738 | N106: 6027 | O106: 7765 | P106: 7765 | Q106: 11247
A107: 00342 | B107: O'BRIEN COUNTY ECONOMIC DEVELPMENT CORP. | C107: 8927.69 | D107: 1.200033771e-05 | E107: 83711 | F107: 139582 | G107: 36865 | H107: 92 | I107: 4297 | J107: 11589 | K107: 15978 | M107: 1984 | N107: 6883 | O107: 8867 | P107: 8867 | Q107: 12843
A108: 00343 | B108: UNION CO SOIL & WATER CONS DISTRICT | C108: 2108.2 | D108: 2.83378029e-06 | E108: 19768 | F108: 32961 | G108: 8705 | H108: 22 | I108: 1015 | J108: 2737 | K108: 3774 | M108: 469 | N108: 1625 | O108: 2094 | P108: 2094 | Q108: 3033
A109: 00344 | B109: SOUTHERN IOWA RC&D AREA | C109: 14752.02 | D109: 1.982923039e-05 | E109: 138324 | F109: 230643 | G109: 60915 | H109: 153 | I109: 7100 | J109: 19149 | K109: 26402 | M109: 3279 | N109: 11373 | O109: 14652 | P109: 14652 | Q109: 21222
A110: 00345 | B110: MASON CITY HOUSING AUTHORITY | C110: 19818.52 | D110: 2.663947033e-05 | E110: 185830 | F110: 309856 | G110: 81836 | H110: 205 | I110: 9539 | J110: 25726 | K110: 35470 | M110: 4405 | N110: 15279 | O110: 19684 | P110: 19684 | Q110: 28511
A111: 00350 | B111: LINKING FAMILIES AND COMMUNITIES | C111: 9260.33 | D111: 1.244746259e-05 | E111: 86830 | F111: 144782 | G111: 38239 | H111: 96 | I111: 4457 | J111: 12021 | K111: 16574 | M111: 2058 | N111: 7139 | O111: 9197 | P111: 9197 | Q111: 13322
A112: 00352 | B112: CHARITON VALLEY PLANNING & DEVELOPMENT | C112: 12768.32 | D112: 1.716279933e-05 | E112: 119723 | F112: 199629 | G112: 52724 | H112: 132 | I112: 6145 | J112: 16574 | K112: 22851 | M112: 2838 | N112: 9844 | O112: 12682 | P112: 12682 | Q112: 18368
A113: 00354 | B113: GREAT PRAIRIE AREA EDUCATION AGENCY | C113: 1597875.02 | D113: 0.002147816496 | E113: 14982631 | F113: 24982272 | G113: 6598084 | H113: 16552 | I113: 769054 | J113: 2074154 | K113: 2859760 | M113: 355127 | N113: 1231892 | O113: 1587019 | P113: 1587019 | Q113: 2298680
A114: 00357 | B114: STATE - DEPT OF CORRECTIONS/PRISON INDUSTRIES | C114: 196706.25 | D114: 0.0002644067423 | E114: 1844435 | F114: 3075440 | G114: 812256 | H114: 2038 | I114: 94674 | J114: 255338 | K114: 352050 | M114: 43718 | N114: 151652 | O114: 195370 | P114: 195370 | Q114: 282979
A115: 00358 | B115: HUDSON MUNICIPAL ELECTRIC UTILITIES | C115: 13385.65 | D115: 1.799259612e-05 | E115: 125512 | F115: 209280 | G115: 55273 | H115: 139 | I115: 6442 | J115: 17376 | K115: 23957 | M115: 2975 | N115: 10320 | O115: 13295 | P115: 13295 | Q115: 19256
A116: 00359 | B116: STATE - IOWA DEPT OF VETERAN AFFAIRS | C116: 78182.59 | D116: 0.0001050907326 | E116: 733087 | F116: 1222360 | G116: 322838 | H116: 810 | I116: 37629 | J116: 101486 | K116: 139925 | M116: 17376 | N116: 60275 | O116: 77651 | P116: 77651 | Q116: 112472
A117: 00361 | B117: GRAETTINGER-TERRIL CSD | C117: 278280.09 | D117: 0.0003740558932 | E117: 2609320 | F117: 4350821 | G117: 1149098 | H117: 2883 | I117: 133936 | J117: 361227 | K117: 498046 | M117: 61848 | N117: 214542 | O117: 276390 | P117: 276390 | Q117: 400330
A118: 00363 | B118: JOINT EMERGENCY COMMUNICATIONS SERVICES ASSOC. | C118: 172480.58 | D118: 0.0002318433109 | E118: 1617281 | F118: 2696679 | G118: 712222 | H118: 1787 | I118: 83015 | J118: 223892 | K118: 308694 | M118: 38334 | N118: 132975 | O118: 171309 | P118: 171309 | Q118: 248128
A119: 00365 | B119: GREEN HILLS AEA | C119: 1687186.72 | D119: 0.00226786665 | E119: 15820070 | F119: 26378632 | G119: 6966878 | H119: 17477 | I119: 812039 | J119: 2190087 | K119: 3019603 | M119: 374976 | N119: 1300747 | O119: 1675723 | P119: 1675723 | Q119: 2427163
A120: 00366 | B120: ST. CHARLES TOWNSHIP/SUNNYSIDE MEMORY GARDENS | C120: 3075.76 | D120: 4.134345918e-06 | E120: 28840 | F120: 48089 | G120: 12701 | H120: 32 | I120: 1480 | J120: 3993 | K120: 5505 | M120: 684 | N120: 2371 | O120: 3055 | P120: 3055 | Q120: 4425
A121: 00367 | B121: WEST FORK COMMUNITY SCHOOL DISTRICT | C121: 489223.01 | D121: 0.0006575991477 | E121: 4587247 | F121: 7648847 | G121: 2020142 | H121: 5068 | I121: 235462 | J121: 635046 | K121: 875576 | M121: 108729 | N121: 377170 | O121: 485899 | P121: 485899 | Q121: 703789
A122: 00368 | B122: EAST SAC COUNTY COMMUNITY SCHOOL DISTRICT | C122: 562932.31 | D122: 0.0007566770157 | E122: 5278390 | F122: 8801269 | G122: 2324509 | H122: 5831 | I122: 270938 | J122: 730726 | K122: 1007495 | M122: 125111 | N122: 433996 | O122: 559107 | P122: 559107 | Q122: 809826
A123: 00369 | B123: IKM-MANNING COMMUNITY SCHOOL DISTRICT | C123: 462689.74 | D123: 0.0006219339083 | E123: 4338455 | F123: 7234008 | G123: 1910579 | H123: 4793 | I123: 222691 | J123: 600604 | K123: 828088 | M123: 102832 | N123: 356714 | O123: 459546 | P123: 459546 | Q123: 665619
A124: 00370 | B124: NORTH BUTLER COMMUNITY SCHOOL DISTRICT | C124: 402959.24 | D124: 0.0005416459311 | E124: 3778387 | F124: 6300141 | G124: 1663934 | H124: 4174 | I124: 193943 | J124: 523069 | K124: 721186 | M124: 89557 | N124: 310664 | O124: 400221 | P124: 400221 | Q124: 579691
A125: 00371 | B125: CAM COMMUNITY SCHOOL DISTRICT | C125: 351675.98 | D125: 0.0004727124848 | E125: 3297524 | F125: 5498343 | G125: 1452171 | H125: 3643 | I125: 169261 | J125: 456500 | K125: 629404 | M125: 78160 | N125: 271127 | O125: 349287 | P125: 349287 | Q125: 505916
A126: 00373 | B126: EAST MILLS COMMUNITY SCHOOL DISTRICT | C126: 306904.44 | D126: 0.0004125319006 | E126: 2877719 | F126: 4798354 | G126: 1267296 | H126: 3179 | I126: 147712 | J126: 398383 | K126: 549274 | M126: 68209 | N126: 236610 | O126: 304819 | P126: 304819 | Q126: 441508
A127: 00374 | B127: CENTRAL SPRINGS COMMUNITY SCHOOL DISTRICT | C127: 522957.52 | D127: 0.0007029440815 | E127: 4903562 | F127: 8176276 | G127: 2159441 | H127: 5417 | I127: 251698 | J127: 678836 | K127: 935951 | M127: 116227 | N127: 403177 | O127: 519404 | P127: 519404 | Q127: 752319
A128: 00376 | B128: CREW PUBLIC LIBRARY | C128: 859.02 | D128: 1.15466936e-06 | E128: 8055 | F128: 13431 | G128: 3547 | H128: 9 | I128: 413 | J128: 1115 | K128: 1537 | M128: 191 | N128: 662 | O128: 853 | P128: 853 | Q128: 1236
A129: 00377 | B129: DES MOINES AIRPORT AUTHORITY | C129: 420851.65 | D129: 0.0005656963811 | E129: 3946156 | F129: 6579883 | G129: 1737817 | H129: 4359 | I129: 202555 | J129: 546295 | K129: 753209 | M129: 93534 | N129: 324458 | O129: 417992 | P129: 417992 | Q129: 605431
A130: 00380 | B130: IOWA ASSOC OF AREA EDUCATION AGENCIES | C130: 59524.78 | D130: 8.001145447e-05 | E130: 558140 | F130: 930651 | G130: 245795 | H130: 617 | I130: 28649 | J130: 77267 | K130: 106533 | M130: 13229 | N130: 45891 | O130: 59120 | P130: 59120 | Q130: 85632
A131: 00381 | B131: EDDYVILLE-BLAKESBURG-FREMONT COMM SCH DIST | C131: 681715.24 | D131: 0.0009163415285 | E131: 6392169 | F131: 10658403 | G131: 2814998 | H131: 7062 | I131: 328108 | J131: 884914 | K131: 1220084 | M131: 151511 | N131: 525573 | O131: 677084 | P131: 677084 | Q131: 980706
A132: 00382 | B132: MAPLE VALLEY - ANTHON OTO COMM SCHOOL DIST | C132: 464713.82 | D132: 0.000624654617 | E132: 4357434 | F132: 7265654 | G132: 1918937 | H132: 4814 | I132: 223666 | J132: 603231 | K132: 831711 | M132: 103282 | N132: 358274 | O132: 461556 | P132: 461556 | Q132: 668531
A133: 00383 | B133: SOUTHERN IOWA TROLLEY | C133: 84623.96 | D133: 0.0001137490323 | E133: 793485 | F133: 1323069 | G133: 349437 | H133: 877 | I133: 40729 | J133: 109848 | K133: 151454 | M133: 18808 | N133: 65241 | O133: 84049 | P133: 84049 | Q133: 121739
A134: 00386 | B134: IOWA PUBLIC POWER AGENCY | C134: 1359.36 | D134: 1.827211638e-06 | E134: 12746 | F134: 21253 | G134: 5613 | H134: 14 | I134: 654 | J134: 1765 | K134: 2433 | M134: 302 | N134: 1048 | O134: 1350 | P134: 1350 | Q134: 1956
A135: 00388 | B135: OSCEOLA WATER WORKS | C135: 39072.88 | D135: 5.252061342e-05 | E135: 366371 | F135: 610892 | G135: 161343 | H135: 405 | I135: 18806 | J135: 50719 | K135: 69930 | M135: 8684 | N135: 30123 | O135: 38807 | P135: 38807 | Q135: 56210
A136: 00389 | B136: STATE - HOMELAND SEC & EMERG MNGMNT | C136: 458029.02 | D136: 0.0006156691059 | E136: 4294754 | F136: 7161139 | G136: 1891333 | H136: 4744 | I136: 220448 | J136: 594554 | K136: 819746 | M136: 101797 | N136: 353120 | O136: 454917 | P136: 454917 | Q136: 658914
A137: 00390 | B137: STATE - IOWA PUBLIC INFORMATION BOARD | C137: 18678.94 | D137: 2.510768049e-05 | E137: 175145 | F137: 292039 | G137: 77131 | H137: 193 | I137: 8990 | J137: 24247 | K137: 33430 | M137: 4151 | N137: 14401 | O137: 18552 | P137: 18552 | Q137: 26871
A138: 00391 | B138: NORTHEAST IOWA AREA AGENCY ON AGING | C138: 234739.23 | D138: 0.0003155295528 | E138: 2201055 | F138: 3670074 | G138: 969306 | H138: 2432 | I138: 112979 | J138: 304708 | K138: 420119 | M138: 52171 | N138: 180974 | O138: 233145 | P138: 233145 | Q138: 337693
A139: 00392 | B139: MILESTONES AREA AGENCY ON AGING | C139: 211466.04 | D139: 0.0002842464169 | E139: 1982832 | F139: 3306205 | G139: 873204 | H139: 2190 | I139: 101778 | J139: 274498 | K139: 378466 | M139: 46998 | N139: 163031 | O139: 210029 | P139: 210029 | Q139: 304212
A140: 00393 | B140: THE HERITAGE AREA AGENCY ON AGING | C140: 74116.1 | D140: =+C140/$C$10 -> 9.962467666e-05 | E140: =ROUND(D140*$E$10,0) -> 694957 | F140: =+ROUND(D140*$F$10,0) -> 1158782 | G140: =+ROUND(D140*$G$10,0) -> 306047 | H140: =ROUND(D140*$H$10,0) -> 768 | I140: =ROUND(D140*$I$10,0) -> 35672 | J140: =ROUND(D140*$J$10,0) -> 96208 | K140: =ROUND(SUM(H140:J140),0) -> 132648 | M140: =ROUND(D140*$M$10,0) -> 16472 | N140: =ROUND(D140*$N$10,0) -> 57140 | O140: =ROUND(SUM(L140:N140),0) -> 73612 | P140: =ROUND(SUM(M140:N140),0) -> 73612 | Q140: =ROUND(D140*$Q$10,0) -> 106622
A141: 00394 | B141: AGING RESOURCES OF CENTRAL IOWA | C141: 72769.6 | D141: 9.781475106e-05 | E141: 682331 | F141: 1137730 | G141: 300487 | H141: 754 | I141: 35024 | J141: 94460 | K141: 130238 | M141: 16173 | N141: 56102 | O141: 72275 | P141: 72275 | Q141: 104685
A142: 00395 | B142: CONNECTIONS AREA AGENCY ON AGING | C142: 184638.05 | D142: 0.0002481850236 | E142: 1731277 | F142: 2886758 | G142: 762423 | H142: 1913 | I142: 88866 | J142: 239673 | K142: 330452 | M142: 41036 | N142: 142348 | O142: 183384 | P142: 183384 | Q142: 265618
A143: 00396 | B143: EASTON VALLEY COMM SCHOOL DIST | C143: 325672.09 | D143: 0.0004377588225 | E143: 3053696 | F143: 5091780 | G143: 1344793 | H143: 3373 | I143: 156745 | J143: 422745 | K143: 582863 | M143: 72380 | N143: 251079 | O143: 323459 | P143: 323459 | Q143: 468507
A144: 00397 | B144: CITY OF URBANDALE WATER UTILITY | C144: 128329.39 | D144: 0.0001724965829 | E144: 1203293 | F144: 2006390 | G144: 529909 | H144: 1329 | I144: 61765 | J144: 166581 | K144: 229675 | M144: 28521 | N144: 98936 | O144: 127457 | P144: 127457 | Q144: 184613
A145: 00398 | B145: SOUTHWEST IOWA JUVENILE DETENTION CENTER | C145: 91162.01 | D145: 0.0001225372864 | E145: 854789 | F145: 1425289 | G145: 376434 | H145: 944 | I145: 43876 | J145: 118335 | K145: 163155 | M145: 20261 | N145: 70282 | O145: 90543 | P145: 90543 | Q145: 131144
A146: 00399 | B146: 10-15 REGIONAL TRANSIT AGENCY | C146: 166370.42 | D146: 0.0002236302139 | E146: 1559988 | F146: 2601149 | G146: 686991 | H146: 1723 | I146: 80074 | J146: 215960 | K146: 297757 | M146: 36976 | N146: 128264 | O146: 165240 | P146: 165240 | Q146: 239338
A147: 00400 | B147: TWO RIVERS LEVEE & DRAINAGE DIST | C147: 26424.48 | D147: 3.551900702e-05 | E147: 247772 | F147: 413138 | G147: 109114 | H147: 274 | I147: 12718 | J147: 34301 | K147: 47293 | M147: 5873 | N147: 20372 | O147: 26245 | P147: 26245 | Q147: 38014
A148: 00402 | B148: GREENE COUNTY COMMUNITY SCHOOL DIST | C148: 897944.57 | D148: 0.001206990619 | E148: 8419665 | F148: 14039080 | G148: 3707871 | H148: 9301 | I148: 432179 | J148: 1165595 | K148: 1607075 | M148: 199568 | N148: 692276 | O148: 891844 | P148: 891844 | Q148: 1291770
A149: 00403 | B149: CLARION-GOLDFIELD-DOWS COMMUNITY SCHOOL DIST | C149: 685670.74 | D149: 0.000921658395 | E149: 6429258 | F149: 10720246 | G149: 2831331 | H149: 7103 | I149: 330012 | J149: 890049 | K149: 1227164 | M149: 152390 | N149: 528622 | O149: 681012 | P149: 681012 | Q149: 986396
A150: 00404 | B150: SUMNER-FREDERICKSBURG COMM SCHOOL DIST | C150: 577388.26 | D150: 0.0007761082776 | E150: 5413937 | F150: 9027283 | G150: 2384202 | H150: 5981 | I150: 277896 | J150: 749490 | K150: 1033367 | M150: 128324 | N150: 445141 | O150: 573465 | P150: 573465 | Q150: 830623
A151: 00405 | B151: SOUTH CENTRAL CALHOUN COMMUNITY SCHOOL DIST | C151: 646940.36 | D151: 0.00086959816 | E151: 6066099 | F151: 10114708 | G151: 2671402 | H151: 6701 | I151: 311371 | J151: 839774 | K151: 1157846 | M151: 143782 | N151: 498763 | O151: 642545 | P151: 642545 | Q151: 930679
A152: 00406 | B152: STATE - OFFICE OF THE CHIEF INFORMATION OFFICER | C152: 1000020.15 | D152: 0.001344197605 | E152: 9376786 | F152: 15635000 | G152: 4129370 | H152: 10359 | I152: 481307 | J152: 1298096 | K152: 1789762 | M152: 222254 | N152: 770972 | O152: 993226 | P152: 993226 | Q152: 1438615
A153: 00407 | B153: EXIRA-ELK HORN-KIMBALLTON COMM SCHOOL DIST | C153: 272888.15 | D153: 0.0003668082064 | E153: 2558762 | F153: 4266520 | G153: 1126833 | H153: 2827 | I153: 131340 | J153: 354228 | K153: 488395 | M153: 60649 | N153: 210385 | O153: 271034 | P153: 271034 | Q153: 392573
A154: 00408 | B154: NORTH UNION COMMUNITY SCHOOL DIST | C154: 257744.72 | D154: 0.0003464528543 | E154: 2416768 | F154: 4029757 | G154: 1064302 | H154: 2670 | I154: 124052 | J154: 334571 | K154: 461293 | M154: 57284 | N154: 198710 | O154: 255994 | P154: 255994 | Q154: 370788
A155: 00409 | B155: DES MOINES CO EMERGENCY COMM CTR | C155: 59927.16 | D155: 8.055232181e-05 | E155: 561913 | F155: 936942 | G155: 247456 | H155: 621 | I155: 28843 | J155: 77790 | K155: 107254 | M155: 13319 | N155: 46201 | O155: 59520 | P155: 59520 | Q155: 86210
A156: 00411 | B156: BENTON CO SOLID WASTE DISPOSAL COMMISSION | C156: 20065.27 | D156: 2.697114441e-05 | E156: 188144 | F156: 313714 | G156: 82855 | H156: 208 | I156: 9657 | J156: 26046 | K156: 35911 | M156: 4459 | N156: 15469 | O156: 19928 | P156: 19928 | Q156: 28866
A157: 00412 | B157: SOUTHWEST WEBSTER AMBULANCE SERVICE | C157: 1756.29 | D157: 2.360753242e-06 | E157: 16468 | F157: 27459 | G157: 7252 | H157: 18 | I157: 845 | J157: 2280 | K157: 3143 | M157: 390 | N157: 1354 | O157: 1744 | P157: 1744 | Q157: 2527
A158: 00413 | B158: CLAYTON COUNTY DEVELOPMENT GROUP | C158: 4696.38 | D158: 6.312735546e-06 | E158: 44036 | F158: 73426 | G158: 19393 | H158: 49 | I158: 2260 | J158: 6096 | K158: 8405 | M158: 1044 | N158: 3621 | O158: 4665 | P158: 4665 | Q158: 6756
A159: 00414 | B159: GARNER-HAYFIELD-VENTURA COMM SCHOOL DIST | C159: 547614.46 | D159: 0.0007360872134 | E159: 5134760 | F159: 8561779 | G159: 2261257 | H159: 5672 | I159: 263566 | J159: 710842 | K159: 980080 | M159: 121707 | N159: 422187 | O159: 543894 | P159: 543894 | Q159: 787790
A160: 00415 | B160: DUBUQUE COUNTY LIBRARY DISTRICT | C160: 45096.45 | D160: 6.061731864e-05 | E160: 422851 | F160: 705069 | G160: 186216 | H160: 467 | I160: 21705 | J160: 58538 | K160: 80710 | M160: 10023 | N160: 34767 | O160: 44790 | P160: 44790 | Q160: 64875
A161: 00416 | B161: AHSTW COMM SCHOOL DIST | C161: 488171.38 | D161: 0.0006561855776 | E161: 4577386 | F161: 7632406 | G161: 2015800 | H161: 5057 | I161: 234956 | J161: 633681 | K161: 873694 | M161: 108496 | N161: 376359 | O161: 484855 | P161: 484855 | Q161: 702276
A162: 00417 | B162: MUNICIPAL HOUSING AGENCY OF COUNCIL BLUFFS | C162: 81785.89 | D162: 0.0001099341823 | E162: 766873 | F162: 1278697 | G162: 337717 | H162: 847 | I162: 39363 | J162: 106164 | K162: 146374 | M162: 18177 | N162: 63053 | O162: 81230 | P162: 81230 | Q162: 117656
A163: 00418 | B163: PRAIRIE SOLID WASTE AGENCY | C163: 5742.74 | D163: 7.719221811e-06 | E163: 53847 | F163: 89786 | G163: 23713 | H163: 59 | I163: 2764 | J163: 7454 | K163: 10277 | M163: 1276 | N163: 4427 | O163: 5703 | P163: 5703 | Q163: 8261
A164: 00419 | B164: OABCIG COMMUNITY SCHOOL DISTRICT | C164: 685976.59 | D164: 0.0009220695096 | E164: 6432126 | F164: 10725028 | G164: 2832594 | H164: 7106 | I164: 330159 | J164: 890446 | K164: 1227711 | M164: 152458 | N164: 528858 | O164: 681316 | P164: 681316 | Q164: 986836
A165: 00420 | B165: STATE - BOARD OF EDUCATIONAL EXAMINERS | C165: 101181.26 | D165: 0.0001360048668 | E165: 948736 | F165: 1581937 | G165: 417806 | H165: 1048 | I165: 48698 | J165: 131340 | K165: 181086 | M165: 22487 | N165: 78006 | O165: 100493 | P165: 100493 | Q165: 145558
A166: 00421 | B166: ALTA-AURELIA COMMUNITY SCHOOL DISTRICT | C166: 531847.88 | D166: 0.0007148942413 | E166: 4986923 | F166: 8315274 | G166: 2196152 | H166: 5509 | I166: 255977 | J166: 690376 | K166: 951862 | M166: 118203 | N166: 410031 | O166: 528234 | P166: 528234 | Q166: 765109
A167: 00422 | B167: NORTH FAYETTE VALLEY COMMUNITY SCHOOL DIST | C167: 886783.78 | D167: 0.001191988615 | E167: 8315014 | F167: 13864585 | G167: 3661784 | H167: 9186 | I167: 426807 | J167: 1151107 | K167: 1587100 | M167: 197087 | N167: 683672 | O167: 880759 | P167: 880759 | Q167: 1275715
A168: 00423 | B168: VAN BUREN COUNTY COMMUNITY SCHOOL DISTRICT | C168: 601451.75 | D168: 0.0008084537114 | E168: 5639571 | F168: 9403508 | G168: 2483567 | H168: 6230 | I168: 289477 | J168: 780727 | K168: 1076434 | M168: 133672 | N168: 463693 | O168: 597365 | P168: 597365 | Q168: 865240
A169: 00424 | B169: MANNING MUNICIPAL UTILITIES | C169: 46676.45 | D169: 6.274110806e-05 | E169: 437666 | F169: 729772 | G169: 192740 | H169: 483 | I169: 22465 | J169: 60589 | K169: 83537 | M169: 10374 | N169: 35986 | O169: 46360 | P169: 46360 | Q169: 67148
A170: 00425 | B170: COUNTY SOCIAL SERVICES | C170: 109451.63 | D170: 0.0001471216544 | E170: 1026284 | F170: 1711242 | G170: 451957 | H170: 1134 | I170: 52679 | J170: 142076 | K170: 195889 | M170: 24326 | N170: 84382 | O170: 108708 | P170: 108708 | Q170: 157456
A171: 01201 | B171: ADAIR COUNTY | C171: 203183.2 | D171: 0.0002731128676 | E171: 1905167 | F171: 3176705 | G171: 839002 | H171: 2105 | I171: 97792 | J171: 263746 | K171: 363643 | M171: 45157 | N171: 156645 | O171: 201802 | P171: 201802 | Q171: 292296
A172: 01203 | B172: ADAIR COUNTY AGRI EXT DIST | C172: 12899.58 | D172: 1.733923515e-05 | E172: 120954 | F172: 201681 | G172: 53266 | H172: 134 | I172: 6209 | J172: 16745 | K172: 23088 | M172: 2867 | N172: 9945 | O172: 12812 | P172: 12812 | Q172: 18557
A173: 01204 | B173: ADAIR COUNTY HEALTH SYSTEM | C173: 385739.17 | D173: 0.0005184992206 | E173: 3616921 | F173: 6030910 | G173: 1592828 | H173: 3996 | I173: 185655 | J173: 500716 | K173: 690367 | M173: 85730 | N173: 297388 | O173: 383118 | P173: 383118 | Q173: 554919
A174: 01205 | B174: ADAIR CO ASSESSOR | C174: 15210.06 | D174: 2.044491426e-05 | E174: 142619 | F174: 237804 | G174: 62807 | H174: 158 | I174: 7321 | J174: 19744 | K174: 27223 | M174: 3380 | N174: 11726 | O174: 15106 | P174: 15106 | Q174: 21881
A175: 01207 | B175: ADAIR CO SANITARY LANDFILL | C175: 11383.66 | D175: 1.530158018e-05 | E175: 106740 | F175: 177980 | G175: 47006 | H175: 118 | I175: 5479 | J175: 14777 | K175: 20374 | M175: 2530 | N175: 8776 | O175: 11306 | P175: 11306 | Q175: 16376
A176: 01301 | B176: CITY OF FONTANELLE | C176: 26400.45 | D176: 3.54867066e-05 | E176: 247546 | F176: 412763 | G176: 109015 | H176: 273 | I176: 12706 | J176: 34270 | K176: 47249 | M176: 5867 | N176: 20354 | O176: 26221 | P176: 26221 | Q176: 37979
A177: 01302 | B177: CITY OF GREENFIELD | C177: 92198.6 | D177: 0.0001239306401 | E177: 864509 | F177: 1441496 | G177: 380714 | H177: 955 | I177: 44375 | J177: 119680 | K177: 165010 | M177: 20491 | N177: 71081 | O177: 91572 | P177: 91572 | Q177: 132636
A178: 01303 | B178: CITY OF CASEY | C178: 10731.77 | D178: 1.442532886e-05 | E178: 100627 | F178: 167788 | G178: 44315 | H178: 111 | I178: 5165 | J178: 13931 | K178: 19207 | M178: 2385 | N178: 8274 | O178: 10659 | P178: 10659 | Q178: 15439
A179: 01306 | B179: CITY OF ADAIR | C179: 15286.13 | D179: 2.054716531e-05 | E179: 143332 | F179: 238994 | G179: 63121 | H179: 158 | I179: 7357 | J179: 19842 | K179: 27357 | M179: 3397 | N179: 11785 | O179: 15182 | P179: 15182 | Q179: 21990
A180: 01308 | B180: CITY OF ORIENT | C180: 9650.98 | D180: 1.29725628e-05 | E180: 90493 | F180: 150890 | G180: 39852 | H180: 100 | I180: 4645 | J180: 12528 | K180: 17273 | M180: 2145 | N180: 7440 | O180: 9585 | P180: 9585 | Q180: 13884
A181: 01309 | B181: CITY OF BRIDGEWATER | C181: 642.72 | D181: 8.639252765e-07 | E181: 6027 | F181: 10049 | G181: 2654 | H181: 7 | I181: 309 | J181: 834 | K181: 1150 | M181: 143 | N181: 496 | O181: 639 | P181: 639 | Q181: 925
A182: 01401 | B182: GREENFIELD TOWNSHIP - ADAIR COUNTY | C182: 2945.13 | D182: 3.958756923e-06 | E182: 27615 | F182: 46046 | G182: 12161 | H182: 31 | I182: 1417 | J182: 3823 | K182: 5271 | M182: 655 | N182: 2271 | O182: 2926 | P182: 2926 | Q182: 4237
A183: 01403 | B183: SUMMERSET TOWNSHIP - ADAIR COUNTY | C183: 972.3 | D183: 1.306936996e-06 | E183: 9117 | F183: 15202 | G183: 4015 | H183: 10 | I183: 468 | J183: 1262 | K183: 1740 | M183: 216 | N183: 750 | O183: 966 | P183: 966 | Q183: 1399
A184: 01528 | B184: ADAIR CASEY COMMUNITY SCHOOL DISTRICT | C184: 198021.03 | D184: 0.0002661740308 | E184: 1856763 | F184: 3095996 | G184: 817686 | H184: 2051 | I184: 95307 | J184: 257045 | K184: 354403 | M184: 44010 | N184: 152666 | O184: 196676 | P184: 196676 | Q184: 284870
A185: 01530 | B185: ORIENT MACKSBURG COMMUNITY SCHOOL DIST | C185: 118242.06 | D185: 0.0001589374913 | E185: 1108708 | F185: 1848677 | G185: 488255 | H185: 1225 | I185: 56910 | J185: 153486 | K185: 211621 | M185: 26279 | N185: 91159 | O185: 117438 | P185: 117438 | Q185: 170101
A186: 02201 | B186: ADAMS COUNTY | C186: 162876.5 | D186: 0.0002189337897 | E186: 1527227 | F186: 2546523 | G186: 672564 | H186: 1687 | I186: 78392 | J186: 211425 | K186: 291504 | M186: 36199 | N186: 125571 | O186: 161770 | P186: 161770 | Q186: 234312
A187: 02203 | B187: ADAMS CO AGR EXT DIST | C187: 4288.74 | D187: 5.764797875e-06 | E187: 40214 | F187: 67053 | G187: 17709 | H187: 44 | I187: 2064 | J187: 5567 | K187: 7675 | M187: 953 | N187: 3306 | O187: 4259 | P187: 4259 | Q187: 6170
A188: 02301 | B188: CITY OF CORNING | C188: 31458.9 | D188: 4.228612597e-05 | E188: 294977 | F188: 491850 | G188: 129903 | H188: 326 | I188: 15141 | J188: 40836 | K188: 56303 | M188: 6992 | N188: 24253 | O188: 31245 | P188: 31245 | Q188: 45256
A189: 02303 | B189: CITY OF PRESCOTT | C189: 2739.14 | D189: 3.681871238e-06 | E189: 25684 | F189: 42826 | G189: 11311 | H189: 28 | I189: 1318 | J189: 3556 | K189: 4902 | M189: 609 | N189: 2112 | O189: 2721 | P189: 2721 | Q189: 3940
A190: 02306 | B190: CORNING HOUSING COMM | C190: 8631.86 | D190: 1.160269174e-05 | E190: 80937 | F190: 134956 | G190: 35643 | H190: 89 | I190: 4154 | J190: 11205 | K190: 15448 | M190: 1918 | N190: 6655 | O190: 8573 | P190: 8573 | Q190: 12418
A191: 02546 | B191: CORNING COMMUNITY SCHOOL DISTRICT | C191: 336603.45 | D191: 0.0004524524344 | E191: 3156195 | F191: 5262689 | G191: 1389932 | H191: 3487 | I191: 162006 | J191: 436935 | K191: 602428 | M191: 74810 | N191: 259507 | O191: 334317 | P191: 334317 | Q191: 484233
A192: 02701 | B192: CORNING MUNICIPAL UTILITIES | C192: 48283.06 | D192: 6.490066586e-05 | E192: 452731 | F192: 754890 | G192: 199375 | H192: 500 | I192: 23239 | J192: 62675 | K192: 86414 | M192: 10731 | N192: 37224 | O192: 47955 | P192: 47955 | Q192: 69459
A193: 03201 | B193: ALLAMAKEE COUNTY | C193: 328814.52 | D193: 0.0004419827843 | E193: 3083161 | F193: 5140911 | G193: 1357769 | H193: 3406 | I193: 158258 | J193: 426824 | K193: 588488 | M193: 73079 | N193: 253502 | O193: 326581 | P193: 326581 | Q193: 473028
A194: 03203 | B194: ALLAMAKEE CO AGR EXT DIST | C194: 17569.55 | D194: 2.361647116e-05 | E194: 164743 | F194: 274694 | G194: 72550 | H194: 182 | I194: 8456 | J194: 22807 | K194: 31445 | M194: 3905 | N194: 13545 | O194: 17450 | P194: 17450 | Q194: 25275
A195: 03206 | B195: ALLAMAKEE CO SOIL & WATER CONS DIST | C195: 2001.64 | D195: 2.690545479e-06 | E195: 18769 | F195: 31295 | G195: 8265 | H195: 21 | I195: 963 | J195: 2598 | K195: 3582 | M195: 445 | N195: 1543 | O195: 1988 | P195: 1988 | Q195: 2880
A196: 03301 | B196: CITY OF HARPERS FERRY | C196: 10528.17 | D196: 1.415165574e-05 | E196: 98718 | F196: 164605 | G196: 43474 | H196: 109 | I196: 5067 | J196: 13666 | K196: 18842 | M196: 2340 | N196: 8117 | O196: 10457 | P196: 10457 | Q196: 15146
A197: 03302 | B197: CITY OF WAUKON | C197: 82980.79 | D197: 0.0001115403316 | E197: 778077 | F197: 1297378 | G197: 342651 | H197: 860 | I197: 39938 | J197: 107715 | K197: 148513 | M197: 18442 | N197: 63975 | O197: 82417 | P197: 82417 | Q197: 119375
A198: 03303 | B198: CITY OF NEW ALBIN | C198: 10695.52 | D198: 1.437660268e-05 | E198: 100288 | F198: 167221 | G198: 44165 | H198: 111 | I198: 5148 | J198: 13884 | K198: 19143 | M198: 2377 | N198: 8246 | O198: 10623 | P198: 10623 | Q198: 15386
A199: 03304 | B199: CITY OF LANSING | C199: 18384.23 | D199: 2.471154e-05 | E199: 172382 | F199: 287432 | G199: 75914 | H199: 190 | I199: 8848 | J199: 23864 | K199: 32902 | M199: 4086 | N199: 14173 | O199: 18259 | P199: 18259 | Q199: 26447
A200: 03306 | B200: CITY OF POSTVILLE | C200: 32660.03 | D200: 4.39006495e-05 | E200: 306240 | F200: 510629 | G200: 134863 | H200: 338 | I200: 15719 | J200: 42395 | K200: 58452 | M200: 7259 | N200: 25179 | O200: 32438 | P200: 32438 | Q200: 46984
A201: 03310 | B201: CITY OF WATERVILLE | C201: 1836.6 | D201: 2.468703577e-06 | E201: 17221 | F201: 28715 | G201: 7584 | H201: 19 | I201: 884 | J201: 2384 | K201: 3287 | M201: 408 | N201: 1416 | O201: 1824 | P201: 1824 | Q201: 2642
A202: 03312 | B202: VETERAN'S MEMORIAL HOSPITAL | C202: 798067.51 | D202: 0.00107273882 | E202: 7483158 | F202: 12477534 | G202: 3295449 | H202: 8267 | I202: 384108 | J202: 1035948 | K202: 1428323 | M202: 177370 | N202: 615275 | O202: 792645 | P202: 792645 | Q202: 1148089
A203: 03566 | B203: POSTVILLE COMMUNITY SCHOOL DISTRICT | C203: 551208.52 | D203: 0.0007409182428 | E203: 5168460 | F203: 8617971 | G203: 2276098 | H203: 5710 | I203: 265295 | J203: 715507 | K203: 986512 | M203: 122506 | N203: 424958 | O203: 547464 | P203: 547464 | Q203: 792961
A204: 03567 | B204: ALLAMAKEE COMMUNITY SCHOOL DISTRICT | C204: 749852.39 | D204: =+C204/$C$10 -> 0.001007929477 | E204: =ROUND(D204*$E$10,0) -> 7031064 | F204: =+ROUND(D204*$F$10,0) -> 11723706 | G204: =+ROUND(D204*$G$10,0) -> 3096355 | H204: =ROUND(D204*$H$10,0) -> 7767 | I204: =ROUND(D204*$I$10,0) -> 360902 | J204: =ROUND(D204*$J$10,0) -> 973361 | K204: =ROUND(SUM(H204:J204),0) -> 1342030 | M204: =ROUND(D204*$M$10,0) -> 166654 | N204: =ROUND(D204*$N$10,0) -> 578103 | O204: =ROUND(SUM(L204:N204),0) -> 744757 | P204: =ROUND(SUM(M204:N204),0) -> 744757 | Q204: =ROUND(D204*$Q$10,0) -> 1078727
... 1847 more rows
